[Event "Eurasia Open Cup 2019"]
[Site "Ekaterinburg"]
[Date "2019.08.03"]
[Round "4.24"]
[White "Anchutin, Nikita"]
[Black "Kopylov, Alexander A."]
[Result "0-1"]
[ECO "A62"]
[WhiteElo "2216"]
[BlackElo "2410"]
[Annotator "NA"]
[PlyCount "102"]
[EventDate "2019.07.31"]
[EventType "swiss"]
[EventCountry "RUS"]
[SourceTitle "playchess.com"]
[Source "ChessBase"]
[SourceQuality "1"]
[TimeControl "5400+30"]

1. d4 {[%emt 0:00:00]} Nf6 {[%emt 0:00:00]} 2. Nf3 {[%emt 0:00:00]} c5 {[%emt 0:00:00]} 3. d5 {[%emt 0:00:00]} e6 {[%emt 0:00:01]} 4. c4 {[%emt 0:00:54]} exd5 {[%emt 0:00:36]} 5. cxd5 {[%emt 0:00:07]} d6 {[%emt 0:00:02]} 6. Nc3 {[%emt 0:00:39]} g6 {[%emt 0:00:26]} 7. g3 {[%emt 0:00:00]} Bg7 {[%emt 0:01:12]} 8. Bg2 {[%emt 0:00:00]} O-O {[%emt 0:00:00]} 9. O-O {[%emt 0:00:00]} Re8 {[%emt 0:00:01]} 10. Bf4 {[%emt 0:00:26]} a6 {[%emt 0:00:45]} 11. a4 {[%emt 0:00:00]} h6 {[%emt 0:00:00]} 12. h3 {[%emt 0:07:50]} g5 {[%emt 0:02:59]} 13. Bc1 {[%emt 0:06:32]} Nbd7 {[%emt 0:02:05]} 14. Qc2 {[%emt 0:17:07]} b6 {[%emt 0:20:09]} 15. Nd2 {[%emt 0:20:12]} g4 {[%emt 0:06:04]} 16. hxg4 {[%emt 0:04:43]} Nxg4 {[%emt 0:01:10]} 17. Nf3 {[%emt 0:05:34]} Ndf6 {[%emt 0:04:07]} 18. Nh4 {[%emt 0:03:21]} Re5 {[%emt 0:00:25]} 19. Bf4 {[%emt 0:03:48]} Rh5 {[%emt 0:01:57]} 20. Qd2 {[%emt 0:07:38]} Rb8 {[%emt 0:03:36]} 21. Bf3 {[%emt 0:04:06]} Qe7 {[%emt 0:10:42]} 22. Kg2 {[%emt 0:03:19]} b5 {[%emt 0:00:46]} 23. axb5 {[%emt 0:00:31]} axb5 {[%emt 0:00:36]} 24. Rh1 {[%emt 0:01:18]} b4 {[%emt 0:00:02]} 25. Nd1 {[%emt 0:01:40]} Nxd5 {[%emt 0:00:30]} 26. Ng6 {[%emt 0:00:04]} Nxf4+ {[%emt 0:01:59]} 27. Nxf4 {[%emt 0:07:41]} Rxh1 {[%emt 0:02:28]} 28. Kxh1 {[%emt 0:00:07]} c4 {[%emt 0:00:19]} 29. Rc1 {[%emt 0:00:04]} Ne5 {[%emt 0:01:34]} 30. Bd5 {[%emt 0:01:09]} Be6 {[%emt 0:09:43]} 31. Nxe6 {[%emt 0:00:39]} c3 {[%emt 0:15:05]} 32. bxc3 {[%emt 0:00:35]} fxe6 {[%emt 0:01:42]} 33. Bb3 {[%emt 0:00:57]} bxc3 {[%emt 0:00:07]} 34. Rxc3 {[%emt 0:02:29]} d5 {[%emt 0:01:45]} 35. Re3 {[%emt 0:00:04]} Rb6 {[%emt 0:01:03]} 36. Ba2 {[%emt 0:01:15]} Qa7 {[%emt 0:04:52]} 37. Qc2 {[%emt 0:00:13]} Rc6 {[%emt 0:04:39]} 38. Qb1 {[%emt 0:00:51]} Ra6 {[%emt 0:00:38]} 39. Rb3 {[%emt 0:00:41]} Nc6 {[%emt 0:00:48]} 40. Nc3 {[%emt 0:00:39]} Qxf2 {[%emt 0:02:20]} 41. Qg6 {[%emt 0:01:13]} Qf7 {[%emt 0:00:53]} 42. Qd3 {[%emt 0:01:05]} Ra8 {[%emt 0:01:06]} 43. Bb1 {[%emt 0:00:06]} Be5 {[%emt 0:00:59]} 44. Kg2 {[%emt 0:00:47]} Rf8 {[%emt 0:00:40]} 45. Qg6+ {[%emt 0:00:18]} Qxg6 {[%emt 0:00:10]} 46. Bxg6 {[%emt 0:00:49]} Na5 {[%emt 0:00:08]} 47. Ra3 {[%emt 0:00:04]} Nc4 {[%emt 0:00:45]} 48. Rb3 {[%emt 0:00:04]} Ne3+ {[%emt 0:00:04]} 49. Kg1 {[%emt 0:00:03]} Bxg3 {[%emt 0:00:10]} 50. Rb1 {[%emt 0:01:20]} Bf2+ {[%emt 0:00:38]} 51. Kh2 {[%emt 0:00:16]} Rf4 {[%emt 0:00:30]} 0-1

[Event "Eurasia Open Cup 2019"]
[Site "Ekaterinburg"]
[Date "2019.08.03"]
[Round "4.25"]
[White "Radzhabov, Rodion"]
[Black "Chigaeva, Anastasia"]
[Result "1/2-1/2"]
[ECO "A07"]
[WhiteElo "2404"]
[BlackElo "2193"]
[Annotator "NA"]
[PlyCount "80"]
[EventDate "2019.07.31"]
[EventType "swiss"]
[EventCountry "RUS"]
[SourceTitle "playchess.com"]
[Source "ChessBase"]
[SourceQuality "1"]
[TimeControl "5400+30"]

1. Nf3 {[%emt 0:00:00]} d5 {[%emt 0:00:00]} 2. g3 {[%emt 0:00:00]} c6 {[%emt 0:00:00]} 3. Bg2 {[%emt 0:00:00]} Nf6 {[%emt 0:00:19]} 4. O-O {[%emt 0:00:00]} Bg4 {[%emt 0:00:25]} 5. d3 {[%emt 0:00:01]} e6 {[%emt 0:00:25]} 6. Nbd2 {[%emt 0:00:05]} Be7 {[%emt 0:00:50]} 7. h3 {[%emt 0:00:05]} Bh5 {[%emt 0:00:35]} 8. e4 {[%emt 0:00:25]} O-O {[%emt 0:01:15]} 9. Qe2 {[%emt 0:00:35]} Nbd7 {[%emt 0:02:11]} 10. e5 {[%emt 0:04:12]} Ne8 {[%emt 0:06:05]} 11. Re1 {[%emt 0:01:16]} Nc7 {[%emt 0:02:26]} 12. g4 {[%emt 0:11:49]} Bg6 {[%emt 0:02:37]} 13. Nf1 {[%emt 0:00:05]} f5 {[%emt 0:08:56]} 14. exf6 {[%emt 0:03:33]} Bxf6 {[%emt 0:00:35]} 15. Ng3 {[%emt 0:01:52]} Be7 {[%emt 0:12:01]} 16. d4 {[%emt 0:04:29]} Bd6 {[%emt 0:04:25]} 17. c3 {[%emt 0:09:57]} Qe7 {[%emt 0:08:19]} 18. Ne5 {[%emt 0:08:39]} Nxe5 {[%emt 0:05:24]} 19. dxe5 {[%emt 0:00:15]} Bc5 {[%emt 0:00:05]} 20. Be3 {[%emt 0:00:04]} Rad8 {[%emt 0:02:29]} 21. Rad1 {[%emt 0:08:34]} Na8 {[%emt 0:01:08]} 22. Bxc5 {[%emt 0:02:24]} Qxc5 {[%emt 0:03:07]} 23. Qe3 {[%emt 0:00:05]} Qxe3 {[%emt 0:03:57]} 24. Rxe3 {[%emt 0:00:24]} Nb6 {[%emt 0:00:28]} 25. b3 {[%emt 0:00:10]} Nd7 {[%emt 0:01:59]} 26. Ne2 {[%emt 0:01:15]} Nc5 {[%emt 0:03:28]} 27. f4 {[%emt 0:06:01]} Rde8 {[%emt 0:01:09]} 28. Kh2 {[%emt 0:04:31]} Be4 {[%emt 0:03:17]} 29. Rf1 {[%emt 0:00:36]} Bxg2 {[%emt 0:00:49]} 30. Kxg2 {[%emt 0:00:00]} Ne4 {[%emt 0:00:54]} 31. c4 {[%emt 0:03:22]} g5 {[%emt 0:04:57]} 32. h4 {[%emt 0:00:39]} Nd2 {[%emt 0:00:02]} 33. Rf2 {[%emt 0:14:09]} gxf4 {[%emt 0:06:13]} 34. Nxf4 {[%emt 0:01:27]} Ne4 {[%emt 0:02:28]} 35. Rff3 {[%emt 0:00:33]} Nd2 {[%emt 0:00:34]} 36. Rf2 {[%emt 0:00:31]} Ne4 {[%emt 0:00:39]} 37. Rff3 {[%emt 0:00:07]} Nd2 {[%emt 0:00:10]} 38. Rf2 {[%emt 0:00:07]} Ne4 {[%emt 0:00:23]} 39. Rff3 {[%emt 0:00:03]} Nd2 {[%emt 0:00:07]} 40. Rf2 {[%emt 0:00:03]} Ne4 {[%emt 0:00:07]} 1/2-1/2

[Event "Eurasia Open Cup 2019"]
[Site "Ekaterinburg"]
[Date "2019.08.03"]
[Round "4.26"]
[White "Krasikov, Vladislav"]
[Black "Popov, Mikhail"]
[Result "0-1"]
[ECO "E94"]
[WhiteElo "2211"]
[BlackElo "2397"]
[Annotator "NA"]
[PlyCount "80"]
[EventDate "2019.07.31"]
[EventType "swiss"]
[EventCountry "RUS"]
[SourceTitle "playchess.com"]
[Source "ChessBase"]
[SourceQuality "1"]
[TimeControl "5400+30"]

1. d4 {[%emt 0:00:00]} Nf6 {[%emt 0:00:00]} 2. c4 {[%emt 0:00:00]} g6 {[%emt 0:00:04]} 3. Nc3 {[%emt 0:00:00]} Bg7 {[%emt 0:00:00]} 4. e4 {[%emt 0:00:00]} d6 {[%emt 0:00:00]} 5. Nf3 {[%emt 0:00:00]} O-O {[%emt 0:00:21]} 6. Be2 {[%emt 0:00:34]} Na6 {[%emt 0:00:48]} 7. O-O {[%emt 0:00:17]} e5 {[%emt 0:00:35]} 8. Re1 {[%emt 0:07:33]} Qe8 {[%emt 0:05:03]} 9. dxe5 {[%emt 0:08:04]} dxe5 {[%emt 0:00:54]} 10. b3 {[%emt 0:00:55]} Qe7 {[%emt 0:08:57]} 11. Nd5 {[%emt 0:04:13]} Nxd5 {[%emt 0:00:00]} 12. cxd5 {[%emt 0:00:06]} f5 {[%emt 0:06:26]} 13. Bxa6 {[%emt 0:27:42]} bxa6 {[%emt 0:00:00]} 14. a4 {[%emt 0:04:04]} Re8 {[%emt 0:09:12]} 15. Ba3 {[%emt 0:01:43]} Qf6 {[%emt 0:00:55]} 16. Rc1 {[%emt 0:01:49]} fxe4 {[%emt 0:04:45]} 17. Nd2 {[%emt 0:01:35]} Bb7 {[%emt 0:01:00]} 18. Rxc7 {[%emt 0:00:31]} Bxd5 {[%emt 0:05:17]} 19. Nxe4 {[%emt 0:11:35]} Bxe4 {[%emt 0:00:47]} 20. Rxe4 {[%emt 0:01:40]} Rad8 {[%emt 0:04:18]} 21. Qc2 {[%emt 0:00:01]} Qf5 {[%emt 0:04:30]} 22. Qc4+ {[%emt 0:04:28]} Kh8 {[%emt 0:08:19]} 23. Re1 {[%emt 0:04:11]} Rd2 {[%emt 0:03:10]} 24. Bc5 {[%emt 0:00:08]} Rc2 {[%emt 0:04:51]} 25. Qxa6 {[%emt 0:03:03]} e4 {[%emt 0:07:55]} 26. Qc6 {[%emt 0:03:16]} Rf8 {[%emt 0:00:47]} 27. Rf1 {[%emt 0:11:02]} Be5 {[%emt 0:02:38]} 28. Bxf8 {[%emt 0:02:56]} Rxc6 {[%emt 0:06:45]} 29. Rxc6 {[%emt 0:02:03]} Qxf8 {[%emt 0:00:11]} 30. Re1 {[%emt 0:00:15]} Qb4 {[%emt 0:00:34]} 31. Rcc1 {[%emt 0:00:45]} Kg7 {[%emt 0:01:43]} 32. Kf1 {[%emt 0:00:28]} Qd2 {[%emt 0:02:02]} 33. Rcd1 {[%emt 0:00:30]} Qc2 {[%emt 0:05:04]} 34. Rd7+ {[%emt 0:00:30]} Kh6 {[%emt 0:00:16]} 35. Re7 {[%emt 0:00:22]} Bc3 {[%emt 0:00:00]} 36. R1xe4 {[%emt 0:00:40]} Qd1+ {[%emt 0:00:59]} 37. Re1 {[%emt 0:00:27]} Bxe1 {[%emt 0:00:07]} 38. Rxe1 {[%emt 0:00:01]} Qxb3 {[%emt 0:00:06]} 39. Ra1 {[%emt 0:00:32]} Qc4+ {[%emt 0:00:55]} 40. Kg1 {[%emt 0:00:00]} Qd4 {[%emt 0:00:13]} 0-1

[Event "Eurasia Open Cup 2019"]
[Site "Ekaterinburg"]
[Date "2019.08.03"]
[Round "4.27"]
[White "Cherniaev, Alexander"]
[Black "Yangutov, Aleksey"]
[Result "1-0"]
[ECO "B23"]
[WhiteElo "2396"]
[BlackElo "2157"]
[Annotator "NA"]
[PlyCount "81"]
[EventDate "2019.07.31"]
[EventType "swiss"]
[EventCountry "RUS"]
[SourceTitle "playchess.com"]
[Source "ChessBase"]
[SourceQuality "1"]
[TimeControl "5400+30"]

1. e4 {[%emt 0:00:00]} c5 {[%emt 0:00:00]} 2. Nc3 {[%emt 0:00:00]} Nc6 {[%emt 0:00:00]} 3. Bb5 {[%emt 0:00:00]} g6 {[%emt 0:01:45]} 4. Bxc6 {[%emt 0:00:00]} dxc6 {[%emt 0:04:41]} 5. d3 {[%emt 0:00:00]} e5 {[%emt 0:00:25]} 6. Nge2 {[%emt 0:01:06]} Nf6 {[%emt 0:01:51]} 7. O-O {[%emt 0:00:05]} Bg7 {[%emt 0:00:15]} 8. f4 {[%emt 0:00:15]} exf4 {[%emt 0:00:46]} 9. Bxf4 {[%emt 0:00:05]} O-O {[%emt 0:13:59]} 10. Qd2 {[%emt 0:00:05]} Re8 {[%emt 0:11:25]} 11. Kh1 {[%emt 0:19:55]} Nd7 {[%emt 0:04:40]} 12. Ng1 {[%emt 0:03:27]} Ne5 {[%emt 0:10:24]} 13. Nf3 {[%emt 0:14:00]} Nxf3 {[%emt 0:01:23]} 14. Rxf3 {[%emt 0:00:00]} Bg4 {[%emt 0:06:31]} 15. Rf2 {[%emt 0:01:14]} Qb6 {[%emt 0:06:17]} 16. Rb1 {[%emt 0:04:25]} c4 {[%emt 0:01:42]} 17. Rff1 {[%emt 0:02:01]} cxd3 {[%emt 0:01:37]} 18. cxd3 {[%emt 0:00:05]} Rad8 {[%emt 0:01:33]} 19. Be3 {[%emt 0:06:33]} Bd4 {[%emt 0:01:59]} 20. Qf2 {[%emt 0:10:20]} Be6 {[%emt 0:02:59]} 21. Rbe1 {[%emt 0:00:10]} Qc5 {[%emt 0:21:10]} 22. Nd5 {[%emt 0:00:00]} Bxe3 {[%emt 0:00:00]} 23. Nf6+ {[%emt 0:00:00]} Kh8 {[%emt 0:00:00]} 24. Rxe3 {[%emt 0:00:00]} Rf8 {[%emt 0:00:00]} 25. Qh4 {[%emt 0:00:00]} h5 {[%emt 0:00:00]} 26. Qf4 {[%emt 0:00:00]} Kg7 {[%emt 0:00:07]} 27. Rg3 {[%emt 0:12:05]} Rh8 {[%emt 0:00:00]} 28. e5 {[%emt 0:00:00]} h4 {[%emt 0:00:53]} 29. Ne4 {[%emt 0:01:50]} Qe7 {[%emt 0:01:08]} 30. Re3 {[%emt 0:00:38]} Rh5 {[%emt 0:02:19]} 31. Nd6 {[%emt 0:01:17]} Bd5 {[%emt 0:00:51]} 32. h3 {[%emt 0:06:03]} Qg5 {[%emt 0:04:28]} 33. Re2 {[%emt 0:01:50]} Qxf4 {[%emt 0:00:52]} 34. Rxf4 {[%emt 0:01:17]} b6 {[%emt 0:00:00]} 35. a3 {[%emt 0:00:03]} Rd7 {[%emt 0:00:56]} 36. d4 {[%emt 0:00:57]} c5 {[%emt 0:00:22]} 37. Ne8+ {[%emt 0:00:39]} Kh6 {[%emt 0:00:40]} 38. Nf6 {[%emt 0:02:24]} Rd8 {[%emt 0:00:07]} 39. Nxh5 {[%emt 0:01:02]} Kxh5 {[%emt 0:00:22]} 40. dxc5 {[%emt 0:00:00]} bxc5 {[%emt 0:00:23]} 41. Rd2 {[%emt 0:00:35]} 1-0

[Event "Eurasia Open Cup 2019"]
[Site "Ekaterinburg"]
[Date "2019.08.03"]
[Round "4.28"]
[White "Kotlyar, Kirill"]
[Black "Kavyev, Ruslan"]
[Result "1-0"]
[ECO "D02"]
[WhiteElo "2387"]
[BlackElo "2167"]
[Annotator "NA"]
[PlyCount "95"]
[EventDate "2019.07.31"]
[EventType "swiss"]
[EventCountry "RUS"]
[SourceTitle "playchess.com"]
[Source "ChessBase"]
[SourceQuality "1"]
[TimeControl "5400+30"]

1. Nf3 {[%emt 0:00:00]} Nf6 {[%emt 0:00:00]} 2. d4 {[%emt 0:00:00]} g6 {[%emt 0:00:00]} 3. Nbd2 {[%emt 0:00:02]} d5 {[%emt 0:00:00]} 4. e3 {[%emt 0:01:02]} Bg7 {[%emt 0:00:00]} 5. b4 {[%emt 0:00:12]} O-O {[%emt 0:01:09]} 6. c4 {[%emt 0:02:10]} a5 {[%emt 0:00:29]} 7. b5 {[%emt 0:00:00]} c5 {[%emt 0:00:37]} 8. dxc5 {[%emt 0:06:50]} Nfd7 {[%emt 0:11:35]} 9. Ba3 {[%emt 0:05:44]} Bxa1 {[%emt 0:03:56]} 10. Qxa1 {[%emt 0:00:23]} Qc7 {[%emt 0:00:12]} 11. Qd4 {[%emt 0:00:18]} dxc4 {[%emt 0:03:26]} 12. Nxc4 {[%emt 0:21:09]} Rd8 {[%emt 0:04:28]} 13. c6 {[%emt 0:09:42]} bxc6 {[%emt 0:07:47]} 14. b6 {[%emt 0:01:52]} Qb7 {[%emt 0:00:51]} 15. Bxe7 {[%emt 0:00:20]} c5 {[%emt 0:02:12]} 16. Qf4 {[%emt 0:01:31]} Rf8 {[%emt 0:06:41]} 17. Qh6 {[%emt 0:01:45]} Qe4 {[%emt 0:09:52]} 18. Ng5 {[%emt 0:03:14]} Qb1+ {[%emt 0:00:05]} 19. Ke2 {[%emt 0:01:49]} Qc2+ {[%emt 0:00:00]} 20. Kf3 {[%emt 0:06:26]} Ne5+ {[%emt 0:00:53]} 21. Nxe5 {[%emt 0:00:20]} Qf5+ {[%emt 0:00:33]} 22. Kg3 {[%emt 0:00:06]} Qxe5+ {[%emt 0:00:09]} 23. Kh4 {[%emt 0:00:36]} Qg7 {[%emt 0:01:19]} 24. Qxg7+ {[%emt 0:02:05]} Kxg7 {[%emt 0:00:02]} 25. Bxf8+ {[%emt 0:00:12]} Kxf8 {[%emt 0:00:00]} 26. Bc4 {[%emt 0:02:44]} f6 {[%emt 0:00:09]} 27. Ne6+ {[%emt 0:00:24]} Bxe6 {[%emt 0:00:10]} 28. Bxe6 {[%emt 0:00:04]} Na6 {[%emt 0:00:26]} 29. Bc4 {[%emt 0:05:20]} Nb4 {[%emt 0:00:41]} 30. a3 {[%emt 0:01:01]} Nc2 {[%emt 0:00:13]} 31. Bd5 {[%emt 0:00:25]} Rb8 {[%emt 0:01:58]} 32. b7 {[%emt 0:00:12]} Ke7 {[%emt 0:00:06]} 33. a4 {[%emt 0:05:50]} Nb4 {[%emt 0:01:08]} 34. Bf3 {[%emt 0:00:50]} Nd3 {[%emt 0:01:15]} 35. Rb1 {[%emt 0:02:38]} Ne5 {[%emt 0:02:18]} 36. Bd5 {[%emt 0:01:12]} f5 {[%emt 0:05:34]} 37. Rb6 {[%emt 0:02:33]} Kd7 {[%emt 0:00:42]} 38. h3 {[%emt 0:00:31]} Kc7 {[%emt 0:03:27]} 39. Re6 {[%emt 0:03:08]} Nd3 {[%emt 0:00:48]} 40. Rc6+ {[%emt 0:00:30]} Kd7 {[%emt 0:02:20]} 41. Ra6 {[%emt 0:01:12]} Nb4 {[%emt 0:05:57]} 42. Ra8 {[%emt 0:00:51]} Kc7 {[%emt 0:00:00]} 43. Bf3 {[%emt 0:00:10]} c4 {[%emt 0:07:23]} 44. Rxa5 {[%emt 0:00:09]} Nd3 {[%emt 0:00:32]} 45. Rb5 {[%emt 0:00:36]} Kd6 {[%emt 0:02:30]} 46. a5 {[%emt 0:00:04]} Nc5 {[%emt 0:00:00]} 47. a6 {[%emt 0:00:49]} Nxa6 {[%emt 0:00:28]} 48. Rb6+ {[%emt 0:00:27]} 1-0

[Event "Eurasia Open Cup 2019"]
[Site "Ekaterinburg"]
[Date "2019.08.03"]
[Round "4.29"]
[White "Tunik, Gennady"]
[Black "Nosacheva, Mariya"]
[Result "0-1"]
[ECO "E94"]
[WhiteElo "2371"]
[BlackElo "2150"]
[Annotator "NA"]
[PlyCount "110"]
[EventDate "2019.07.31"]
[EventType "swiss"]
[EventCountry "RUS"]
[SourceTitle "playchess.com"]
[Source "ChessBase"]
[SourceQuality "1"]
[TimeControl "5400+30"]

1. d4 {[%emt 0:00:00]} Nf6 {[%emt 0:03:00]} 2. c4 {[%emt 0:00:00]} g6 {[%emt 0:00:05]} 3. Nc3 {[%emt 0:00:00]} Bg7 {[%emt 0:00:05]} 4. e4 {[%emt 0:00:10]} d6 {[%emt 0:00:10]} 5. Nf3 {[%emt 0:00:10]} O-O {[%emt 0:00:10]} 6. Be2 {[%emt 0:00:10]} c6 {[%emt 0:00:05]} 7. O-O {[%emt 0:02:31]} e5 {[%emt 0:01:05]} 8. dxe5 {[%emt 0:01:16]} dxe5 {[%emt 0:00:15]} 9. Qxd8 {[%emt 0:00:15]} Rxd8 {[%emt 0:00:05]} 10. Be3 {[%emt 0:00:15]} Bg4 {[%emt 0:09:02]} 11. Rfd1 {[%emt 0:02:36]} Nbd7 {[%emt 0:00:50]} 12. h3 {[%emt 0:04:39]} Bxf3 {[%emt 0:00:40]} 13. Bxf3 {[%emt 0:00:05]} Re8 {[%emt 0:00:16]} 14. b4 {[%emt 0:05:08]} Nf8 {[%emt 0:02:22]} 15. b5 {[%emt 0:00:57]} Ne6 {[%emt 0:01:36]} 16. bxc6 {[%emt 0:00:41]} bxc6 {[%emt 0:00:05]} 17. Rab1 {[%emt 0:01:17]} Bf8 {[%emt 0:06:01]} 18. Na4 {[%emt 0:02:17]} Reb8 {[%emt 0:03:12]} 19. Rb3 {[%emt 0:02:48]} Rb4 {[%emt 0:02:13]} 20. Rxb4 {[%emt 0:00:15]} Bxb4 {[%emt 0:00:05]} 21. c5 {[%emt 0:01:36]} Rd8 {[%emt 0:05:10]} 22. Rxd8+ {[%emt 0:09:33]} Nxd8 {[%emt 0:00:00]} 23. Nb2 {[%emt 0:01:12]} Ne6 {[%emt 0:03:13]} 24. Nd3 {[%emt 0:00:20]} Bc3 {[%emt 0:00:05]} 25. Kf1 {[%emt 0:08:45]} Kf8 {[%emt 0:04:10]} 26. Ke2 {[%emt 0:01:41]} h5 {[%emt 0:06:13]} 27. Kd1 {[%emt 0:01:09]} Nd7 {[%emt 0:00:49]} 28. Kc2 {[%emt 0:05:07]} Bd4 {[%emt 0:00:54]} 29. Bxd4 {[%emt 0:01:31]} Nxd4+ {[%emt 0:06:13]} 30. Kc3 {[%emt 0:00:29]} Nxf3 {[%emt 0:00:15]} 31. gxf3 {[%emt 0:00:05]} Ke7 {[%emt 0:00:24]} 32. Kb4 {[%emt 0:05:24]} Kf6 {[%emt 0:02:03]} 33. Ka5 {[%emt 0:10:49]} Nb8 {[%emt 0:12:55]} 34. a4 {[%emt 0:03:22]} Ke6 {[%emt 0:00:31]} 35. Kb4 {[%emt 0:00:27]} g5 {[%emt 0:02:09]} 36. Kc4 {[%emt 0:00:51]} f5 {[%emt 0:00:36]} 37. Nb4 {[%emt 0:03:49]} h4 {[%emt 0:03:35]} 38. Kd3 {[%emt 0:00:14]} a5 {[%emt 0:00:01]} 39. exf5+ {[%emt 0:14:48]} Kxf5 {[%emt 0:00:41]} 40. Nc2 {[%emt 0:01:58]} Nd7 {[%emt 0:00:11]} 41. Ne3+ {[%emt 0:00:12]} Kf4 {[%emt 0:01:20]} 42. Ke2 {[%emt 0:00:40]} Nxc5 {[%emt 0:00:33]} 43. Ng2+ {[%emt 0:00:04]} Kf5 {[%emt 0:00:22]} 44. Ne3+ {[%emt 0:00:26]} Ke6 {[%emt 0:00:11]} 45. Nc4 {[%emt 0:00:04]} Nxa4 {[%emt 0:01:25]} 46. Nxa5 {[%emt 0:00:06]} Kd5 {[%emt 0:01:47]} 47. Nb3 {[%emt 0:00:04]} Nc5 {[%emt 0:01:36]} 48. Nd2 {[%emt 0:02:29]} Ne6 {[%emt 0:00:13]} 49. Ke3 {[%emt 0:00:22]} Nf4 {[%emt 0:01:37]} 50. Ne4 {[%emt 0:00:10]} Nxh3 {[%emt 0:00:19]} 51. Nf6+ {[%emt 0:00:06]} Ke6 {[%emt 0:00:10]} 52. Ng4 {[%emt 0:00:03]} Ng1 {[%emt 0:01:42]} 53. Ke4 {[%emt 0:00:11]} h3 {[%emt 0:01:46]} 54. Nh2 {[%emt 0:00:21]} c5 {[%emt 0:00:54]} 55. Kd3 {[%emt 0:00:10]} Kf5 {[%emt 0:01:25]} 0-1

[Event "Eurasia Open Cup 2019"]
[Site "Ekaterinburg"]
[Date "2019.08.03"]
[Round "4.30"]
[White "Saunina, Ludmila"]
[Black "Fotin, Vladimir"]
[Result "0-1"]
[ECO "E11"]
[WhiteElo "2199"]
[BlackElo "2368"]
[Annotator "NA"]
[PlyCount "108"]
[EventDate "2019.07.31"]
[EventType "swiss"]
[EventCountry "RUS"]
[SourceTitle "playchess.com"]
[Source "ChessBase"]
[SourceQuality "1"]
[TimeControl "5400+30"]

1. d4 {[%emt 0:00:00]} Nf6 {[%emt 0:06:22]} 2. c4 {[%emt 0:00:00]} e6 {[%emt 0:00:58]} 3. Nf3 {[%emt 0:00:00]} Bb4+ {[%emt 0:00:02]} 4. Nbd2 {[%emt 0:00:00]} a5 {[%emt 0:00:56]} 5. Qc2 {[%emt 0:02:03]} d6 {[%emt 0:09:02]} 6. g3 {[%emt 0:08:34]} O-O {[%emt 0:14:50]} 7. Bg2 {[%emt 0:00:38]} Re8 {[%emt 0:02:13]} 8. O-O {[%emt 0:00:17]} e5 {[%emt 0:00:20]} 9. e4 {[%emt 0:15:46]} Bg4 {[%emt 0:05:57]} 10. dxe5 {[%emt 0:02:06]} dxe5 {[%emt 0:00:00]} 11. h3 {[%emt 0:00:19]} Bh5 {[%emt 0:08:10]} 12. b3 {[%emt 0:04:14]} Nc6 {[%emt 0:01:49]} 13. Bb2 {[%emt 0:00:05]} Qe7 {[%emt 0:03:00]} 14. Nh4 {[%emt 0:02:11]} Ba3 {[%emt 0:19:02]} 15. Nf5 {[%emt 0:00:22]} Qc5 {[%emt 0:00:00]} 16. Bxa3 {[%emt 0:03:25]} Qxa3 {[%emt 0:00:00]} 17. Nb1 {[%emt 0:00:00]} Qc5 {[%emt 0:01:02]} 18. Nc3 {[%emt 0:00:00]} Bg6 {[%emt 0:00:14]} 19. Rad1 {[%emt 0:04:40]} Rad8 {[%emt 0:03:44]} 20. Qb1 {[%emt 0:02:15]} Bxf5 {[%emt 0:11:47]} 21. exf5 {[%emt 0:00:10]} Nd4 {[%emt 0:00:03]} 22. g4 {[%emt 0:05:13]} c6 {[%emt 0:00:25]} 23. Rd3 {[%emt 0:09:10]} b5 {[%emt 0:01:42]} 24. cxb5 {[%emt 0:00:37]} cxb5 {[%emt 0:00:02]} 25. Re3 {[%emt 0:15:07]} b4 {[%emt 0:02:35]} 26. Na4 {[%emt 0:02:05]} Qd6 {[%emt 0:02:12]} 27. Nb2 {[%emt 0:01:04]} Nb5 {[%emt 0:00:43]} 28. Nc4 {[%emt 0:00:33]} Qc7 {[%emt 0:00:01]} 29. Rfe1 {[%emt 0:01:32]} Nc3 {[%emt 0:00:36]} 30. Qc2 {[%emt 0:03:27]} e4 {[%emt 0:00:00]} 31. g5 {[%emt 0:03:55]} Nfd5 {[%emt 0:03:01]} 32. Rg3 {[%emt 0:00:07]} Nf4 {[%emt 0:02:21]} 33. Bxe4 {[%emt 0:03:58]} Rd4 {[%emt 0:00:34]} 34. Rge3 {[%emt 0:01:12]} Nxh3+ {[%emt 0:00:00]} 35. Rxh3 {[%emt 0:00:12]} Rexe4 {[%emt 0:00:20]} 36. Rxe4 {[%emt 0:03:04]} Nxe4 {[%emt 0:01:16]} 37. g6 {[%emt 0:02:14]} hxg6 {[%emt 0:01:02]} 38. fxg6 {[%emt 0:00:00]} fxg6 {[%emt 0:00:00]} 39. Re3 {[%emt 0:05:40]} Qf4 {[%emt 0:00:53]} 40. Nxa5 {[%emt 0:00:25]} Qg4+ {[%emt 0:00:30]} 41. Kh2 {[%emt 0:00:38]} Ng5 {[%emt 0:01:43]} 42. Qe2 {[%emt 0:01:17]} Qh4+ {[%emt 0:00:26]} 43. Kg2 {[%emt 0:01:15]} Ne6 {[%emt 0:00:20]} 44. Qf3 {[%emt 0:01:35]} Rg4+ {[%emt 0:01:07]} 45. Kf1 {[%emt 0:00:00]} Nf4 {[%emt 0:00:00]} 46. Qa8+ {[%emt 0:00:05]} Kh7 {[%emt 0:00:03]} 47. Nc4 {[%emt 0:00:28]} Qg5 {[%emt 0:00:48]} 48. Ke1 {[%emt 0:00:17]} Rg1+ {[%emt 0:01:07]} 49. Kd2 {[%emt 0:00:01]} Nd5 {[%emt 0:00:15]} 50. Qf8 {[%emt 0:00:32]} Qg4 {[%emt 0:00:05]} 51. Rf3 {[%emt 0:00:00]} Qd4+ {[%emt 0:00:30]} 52. Rd3 {[%emt 0:02:42]} Rd1+ {[%emt 0:00:30]} 53. Kxd1 {[%emt 0:00:30]} Qxd3+ {[%emt 0:00:30]} 54. Ke1 {[%emt 0:00:30]} Nc3 {[%emt 0:00:30]} 0-1